{"text_format":"1","workbook":"xlsx","n_sheets":9,"sheets":["Cover","0. Instruction","1. Prerequisites of quality","2. Assurance of Integrity","3. Methodological Soundness","4. Accuracy and Reliability","5. Serviceability","6. Accessibility","results"],"not_rendered":{"charts":0,"images":2,"macros":1,"external_links":0,"defined_names":6,"comments":0,"pivot_tables":0},"unopened":[],"bounds":{"document_bytes":16777216,"sheet_cells":100000,"rows_first":2000,"rows_last":500,"rows_between":2000,"halvings":0,"cell_chars":16384,"cell_head_chars":4096},"cells_cut":0,"cells_raw":0,"read":"whole","date_system":"1900"}

{"sheet":"Cover","index":0,"n_rows":0,"n_cols":0,"rows_kept":0,"cut":false,"hidden":false,"merged":[]}

{"sheet":"0. Instruction","index":1,"n_rows":44,"n_cols":16384,"rows_kept":44,"cut":false,"hidden":false,"merged":[],"flags":["row_too_large"]}
[null,"Agency Name"]
[null,"Please provide the name of your agency below."]
[null,"ICP Global Office (The World Bank)"]
[]
[null,"Index (click to go to the sheet)"]
[null,"1. Prerequisites of quality"]
[null,"2. Assurance of Integrity"]
[null,"3. Methodological Soundness"]
[null,"4. Accuracy and Reliability"]
[null,"5. Serviceability"]
[null,"6. Accessibility"]
[]
[null,"Instructions"]
[null,"(A) Please enable Excel Macro in order to take advantage of the features of this questionnaire sheets. "]
[null,"ANSWERING"]
[null,"(1) Please carefully read the questionnaire."]
[null,"(2) Click the cell corresponding to your answer (YES, NO, N/A=Not Applicable). The cell you have clicked will turn blue. If you want to change your answer, just click another choice. Please note that if your answer is N/A, you will have to justify the answer by providing a comment under column “Comments” (see step 3.)"]
[null,"(3) Provide comments if any. "]
[null,"(4) Complete the questionnaire."]
[null,"CHECKING"]
[null,"(a) There are two indicators for checking whether you have answered each question or not."]
[null,"Column B - Default is RED. Whatever your answer (YES, NO or N/A),  the corresponding cell in column B becomes GREEN, showing that you have provided an answer. "]
[null,"Column I - – Default is WHITE. If your answer is N/A, the corresponding cell under column I will turn RED. You will have to enter a comment under column H for the verification cell under I to turn back to white."]
[null,"(b) Please answer all the questions properly and provide comments as requested. If a cell in column B is red, it means that you have not answered the relevant question. If a cell in column I is red, it means that though you have answered the relevant question with N/A, you have not provided a comment in column H."]
[null,"(c) There are 6 sections. Be sure to complete all the sections."]
[null,"SAVING"]
[null,"Please save the file by the Excel save function."]
[]
[]
[]
[null,"(B) In case if you cannot enable Excel Macro "]
[null,"ANSWERING"]
[null,"(1) Please carefully read the questionnaire."]
[{"$cut":{"chars":2198399,"head":""}}]
[null,"(3) Provide comments if any. "]
[null,"(4) Complete the questionnaire."]
[null,"CHECKING"]
[null,"(a) There are two indicators for checking whether you have answered each question or not."]
[null,"Column B - Default is RED. Whatever your answer (YES, NO or N/A),  the corresponding cell in column B becomes GREEN, showing that you have provided an answer.  If you enter more than one \"1\"s for a question, i.e. if you choose multiple answers, it remains RED. Multiple answers are not allowed."]
[null,"Column I - – Default is WHITE. If your answer is N/A, the corresponding cell under column I will turn RED. You will have to enter a comment under column H for the verification cell under I to turn back to white."]
[null,"(b) Please answer all the questions properly and provide comments as requested. If a cell in column B is red, it means that you have not answered the relevant question. If a cell in column I is red, it means that though you have answered the relevant question with N/A, you have not provided a comment in column H."]
[null,"(c) There are 6 sections. Be sure to answer all the sections."]
[null,"SAVING"]
[null,"Please save the file by the Excel save function."]

{"sheet":"1. Prerequisites of quality","index":2,"n_rows":61,"n_cols":9,"rows_kept":61,"cut":false,"hidden":false,"merged":[[12,3,12,8],[3,1,3,2],[4,1,4,2],[7,1,7,2],[10,1,10,2],[12,1,12,2],[1,2,1,7],[4,3,4,8],[3,3,3,8],[7,3,7,8],[10,3,10,8],[24,1,24,2],[21,1,21,2],[19,1,19,2],[29,1,29,2],[29,3,29,8],[19,3,19,8],[21,3,21,8],[25,3,25,8],[24,3,24,8],[25,1,25,2],[32,1,32,2],[32,3,32,8],[34,1,34,2],[34,3,34,8],[37,1,37,2],[37,3,37,8],[41,1,41,2],[41,3,41,8],[43,1,43,2],[43,3,43,8],[44,1,44,2],[44,3,44,8],[55,1,55,2],[55,3,55,8],[59,1,59,2],[59,3,59,8],[46,1,46,2],[46,3,46,8],[49,1,49,2],[49,3,49,8],[50,1,50,2],[50,3,50,8]]}
[null,null,"QAF Check Sheet - Global Office",null,null,null,null,"Back to the Index"]
[null,null,"1. Prerequisites of quality"]
[null,null,"#",null,"YES","NO","N/A","Comments"]
[null,"1.1",null,"The legal and institutional environment is supportive of statistics"]
[null,"1.1.1",null,"The primary responsibility for processing, finalising and disseminating ICP data to the public is clearly established."]
[null,{"$f":"IF(E6+F6+G6=1, 1, 0)","v":0},"Q1.","Is there a resolution of the United Nations Statistical Commission requesting the World Bank to host the ICP Global Office and take responsibility for the global coordination and completion of the 2011 round of the ICP?",null,null,null,null,{"$f":"IF(G6=\"\", 1, IF(H6=\"\",0, 1))","v":1}]
[null,{"$f":"IF(E7+F7+G7=1, 1, 0)","v":0},"Q2.","Are there any conflicts or potential conflicts between the formal authority to produce ICP statistics and other laws or provisions, such as the internal policies or processes of the World Bank, that could impair data production? If Yes, please provide a brief description.",null,null,null,null,{"$f":"IF(G7=\"\", 1, IF(H7=\"\",0, 1))","v":1}]
[null,"1.1.2",null,"Arrangements or procedures exist to facilitate data sharing and coordination between the agency with the primary responsibility for compiling ICP statistics and other data producing agencies."]
[null,0,"Q3.","Are there procedures in place to provide for the effective and timely flow of source data, such as price and national expenditure data, from the RCAs to the GO?",null,null,null,null,1]
[null,0,"Q4.","Are regular meetings and workshops held between the GO and the RCAs to promote consistency of methods and a proper understanding of data requirements, to avoid duplication of effort, and to take into account appropriate allocation of responsibilities?",null,null,null,null,1]
[null,"1.1.3",null,"The confidentiality of individual data is guaranteed and the guarantee is widely known."]
[null,0,"Q5.","Is there a law or other formal provision to ensure that individual data, such as the prices observed at a specific outlet or the prices observed for a particular product, are to be treated as confidential and shall not be disclosed or used for purposes other than statistical purposes unless disclosure is agreed to in writing? If yes, please provide details.",null,null,null,null,1]
[null,"1.1.4",null,"Procedures are in place to prevent disclosure of individual data."]
[null,0,"Q6.","Are there rules and regulations to prevent disclosure of individual data including penalties against GO staff and consultants who disclose such data? If yes, please provide details.",null,null,null,null,1]
[null,0,"Q7.","Are special aggregation rules used to prevent residual disclosure when aggregations of individual data are disseminated? If yes, please provide details.",null,null,null,null,1]
[null,0,"Q8.","Do GO ICP staff review all data prepared for dissemination for possible indirect disclosure of individual data? If yes, please provide details on the review criteria employed.",null,null,null,null,1]
[null,0,"Q9.","Where data beyond those in public releases are made available for purposes such as research, is the confidentiality of individual data protected? If yes, please provide details on the procedures employed to protect confidentiality of individual data.",null,null,null,null,1]
[null,0,"Q10.","Is the confidentiality of individual data protected and appropriately guarded during storage and during the process of the destruction of records? If yes, please provide details on the procedures employed.",null,null,null,null,1]
[null,0,"Q11.","Are steps taken to secure the premises of the GO and its computer systems to prevent unauthorized access to individual data? If yes, please provide details.",null,null,null,null,1]
[null,"1.1.5",null,"A  law or other formal provision provides for the reporting of information needed to compile ICP statistics."]
[null,0,"Q12.","Does the GO have the formal authority to collect and process ICP price data and ICP expenditure data? Please explain.",null,null,null,null,1]
[null,"1.1.6",null,"Other mechanisms are in place to provide for adequate reporting of data for compiling ICP statistics."]
[null,0,"Q13.","Does the GO periodically evaluate current and alternative approaches to   ICP data reporting issues?",null,null,null,null,1]
[null,0,"Q14.","Does the GO provide assistance in completing and submitting forms to those reporting data to it (by providing appropriate computer software for example)?",null,null,null,null,1]
[null,"1.2",null,"Resources are commensurate with the needs of the statistical program and measures to ensure efficient use of resources are implemented."]
[null,"1.2.1",null,"Staff resources for compiling ICP statistics are adequate to perform required tasks."]
[null,0,"Q15.","Is the number of GO staff working on the ICP adequate? Please indicate how many (full-time equivalent) GO staff work on the ICP and how many GO staff working on the 2011 Round have a direct experience with the 2005 Round.",null,null,null,null,1]
[null,0,"Q16.","Are the qualifications of GO staff working on the ICP adequate? Please indicate any areas of expertise (technical or otherwise) that require strengthening",null,null,null,null,1]
[null,0,"Q17.","Is the turnover of GO staff working on the ICP manageable?",null,null,null,null,1]
[null,"1.2.2",null,"Computing resources for compiling ICP statistics are adequate to perform required tasks."]
[null,0,"Q18.","Are sufficient resources of computers and software allocated to exploit the full potential of effective computing technology for compiling and disseminating ICP data and statistics? Please indicate any specific IT resources needs.",null,null,null,null,1]
[null,0,"Q19.","Is adequate protection provided for computer resources in the event of a natural disasters, accidents, and other unusual events? Please provide a brief description of current IT security policies.",null,null,null,null,1]
[null,"1.2.3",null,"Physical facilities and other resources are adequate to perform required tasks."]
[null,0,"Q20.","Are GO facilities (office condition, office space, lighting, heating, cooling, furniture, equipment, etc.) adequate for the performance of required tasks?",null,null,null,null,1]
[null,"1.2.4",null,"Funding for compiling the statistics is adequate to perform required tasks."]
[null,0,"Q21.","Does the GO have sufficient funding for the full cycle of the  ICP round? Please indicate in percentage terms the current status of funds availability with respect to the estimated cost of the full cycle of the ICP 2011 round.",null,null,null,null,1]
[null,0,"Q22.","What are the sources of this funding?",null,null,null,null,1]
[null,"1.2.5",null,"Management ensures that resources are used efficiently."]
[null,0,"Q23.","Are there periodic reviews of GO staff performance and work processes? If yes, please specify the frequency of these reviews, as well as the main performance indicators employed.",null,null,null,null,1]
[null,0,"Q24.","Does the GO seek efficiencies through periodic reviews of work processes and their cost effectiveness in relation to objectives?",null,null,null,null,1]
[null,0,"Q25.","Does the GO seek outside expert assistance to evaluate statistical methodologies and compilation systems? If yes, please indicate the name of the institutions / experts involved.",null,null,null,null,1]
[null,"1.2.6",null,"Costing and budgeting practices are in place and provide sufficient information to management to make appropriate decisions."]
[null,0,"Q26.","Does the GO have a detailed overall budget for the ICP round broken down by year? If yes, please attach a summary of the most up-to-date budget available.",null,null,null,null,1]
[null,"1.3",null,"Relevance"]
[null,"1.3.1",null,"Specific actions are taken to ensure that current ICP statistics meet needs of users."]
[null,0,"Q27.","Does the GO keep users informed of the usefulness of current ICP data through newsletters, seminars, etc. and actively seek their feedback through surveys, provision of an email contact address, etc.? If yes, please provide a list of the most important elements of this outreach strategy. ",null,null,null,null,1]
[null,"1.3.2",null,"Mechanisms are in place to identify new and emerging data requirements."]
[null,0,"Q28.","Does the GO consult regularly with users in order to identify emerging requirements that may need to be addressed in the next ICP round? If yes, please provide a list of the main emerging data requirements identified so far.",null,null,null,null,1]
[null,0,"Q29.","Does the GO carry out studies to help identify new and emerging data requirements that may need to be taken into account in the next ICP round?  ",null,null,null,null,1]
[null,"1.4",null,"Other quality management"]
[null,"1.4.1",null,"There is recognition throughout the GO that quality builds trust and thus is a cornerstone of statistical work."]
[null,0,"Q30.","Does the GO management emphasize the importance of data quality to GO staff and users?",null,null,null,null,1]
[null,0,"Q31.","Is the ICP global manager held accountable for achieving quality?",null,null,null,null,1]
[null,0,"Q32.","Do GO staff training programs emphasize the importance of quality and give staff an understanding how quality may be achieved?",null,null,null,null,1]
[null,0,"Q33.","Does the GO provide an infrastructure for quality by recognizing trade-offs, economies of scale, and interrelations between data sets?",null,null,null,null,1]
[null,"1.4.2",null,"Measures are in place for a systematic monitoring and review of quality."]
[null,0,"Q34.","Does the GO have processes in place to monitor the quality of ICP data received and processed? If yes, please provide a brief description of the nature of these processes.",null,null,null,null,1]
[null,0,"Q35.","Does the GO have processes in place to report to management and the Executive Board on the quality of ICP data received, processed and disseminated? If yes, please provide a brief description of the nature of these processes.",null,null,null,null,1]
[null,0,"Q36.","Does the GO undertake periodic reviews to identify steps necessary to maintain or improve data quality in future ICP rounds? If yes, please provide a few examples of steps identified in this regard.",null,null,null,null,1]
[null,"1.4.3",null,"When planning the ICP, quality issues, including implicit and explicit trade-offs among the dimensions of quality, are considered."]
[null,0,"Q37.","Does the GO take into consideration quality issues - including the trade-off between resource availability, timeliness, accuracy and reliability - when developing the global ICP work program and timeline?",null,null,null,null,1]

{"sheet":"2. Assurance of Integrity","index":3,"n_rows":34,"n_cols":9,"rows_kept":34,"cut":false,"hidden":false,"merged":[[1,2,1,7],[3,1,3,2],[3,3,3,8],[4,1,4,2],[4,3,4,8],[6,1,6,2],[6,3,6,8],[10,1,10,2],[10,3,10,8],[12,1,12,2],[12,3,12,8],[14,1,14,2],[14,3,14,8],[18,1,18,2],[18,3,18,8],[19,1,19,2],[19,3,19,8],[21,1,21,2],[21,3,21,8],[23,1,23,2],[23,3,23,8],[26,1,26,2],[26,3,26,8],[28,1,28,2],[28,3,28,8],[29,1,29,2],[29,3,29,8],[31,1,31,2],[31,3,31,8]]}
[null,null,"QAF Check Sheet - Global Office",null,null,null,null,"Back to the Index"]
[null,null,"2. Assurance of Integrity"]
[null,null,"#",null,"YES","NO","N/A","Comments"]
[null,2.1,null,"Professionalism"]
[null,"2.1.1",null,"The terms or conditions under which the ICP statistics are produced are in accordance with professional independence."]
[null,{"$f":"IF(E6+F6+G6=1, 1, 0)","v":0},"Q1.","Is there a law or other formal provision that ensures the professional independence of the GO in compiling and disseminating ICP data? If yes, please provide details.",null,null,null,null,{"$f":"IF(G6=\"\", 1, IF(H6=\"\",0, 1))","v":1}]
[null,"2.1.2",null,"Professionalism is actively promoted and supported within the GO."]
[null,{"$f":"IF(E8+F8+G8=1, 1, 0)","v":0},"Q2.","Are recruitment and promotion in the GO based on the relevant aptitude and expertise of staff?",null,null,null,null,{"$f":"IF(G8=\"\", 1, IF(H8=\"\",0, 1))","v":1}]
[null,0,"Q3.","Does the GO provide training in methodology and compilation methods through formal training by internal and external experts and through on-the-job training? If yes, please describe contents and nature of these training activities.",null,null,null,null,1]
[null,0,"Q4.","Are research and analysis on the choice of methodologies encouraged and published to maintain the GO's reputation for professionalism?",null,null,null,null,1]
[null,"2.1.3",null,"Choices of data sources and statistical techniques for the ICP are informed solely by statistical considerations."]
[null,0,"Q5.","Are the GO's choice of data sources and statistical techniques for the ICP based on measurement objectives and data requirements only?",null,null,null,null,1]
[null,"2.1.4",null,"Decisions about the dissemination of data are informed solely by statistical considerations."]
[null,0,"Q6.","Is the dissemination of data based on statistical considerations only?",null,null,null,null,1]
[null,"2.1.5",null,"The GO comments when ICP statistics are misinterpreted or misused."]
[null,0,"Q7.","Does the GO seek to prevent misinterpretation or misuse of ICP statistics by providing explanatory materials and briefings?",null,null,null,null,1]
[null,0,"Q8.","Does the GO monitor media coverage in the case of  misinterpretations or misuse of ICP statistics?",null,null,null,null,1]
[null,0,"Q9.","Does the GO comment publicly and in a timely manner on erroneous interpretations or misuse of ICP statistics in the media or elsewhere?",null,null,null,null,1]
[null,2.2000000000000002,null,"Transparency"]
[null,"2.2.1",null,"Information is available to the public about the terms and conditions under which ICP statistics are compiled and disseminated. This includes information on the obligation to compile and disseminate ICP statistics, the confidentiality of individual data, and other key features."]
[null,0,"Q10.","Is information available to the public about the terms and conditions under which the ICP data are processed and disseminated by the GO? If yes, please indicate where and how this information can be  obtained.",null,null,null,null,1]
[null,"2.2.2",null,"The public is made aware of pre-embargo access to ICP statistics prior to their release to the public."]
[null,0,"Q11.","Is there a global ICP data access policy available to the public with details about pre-embargo access? If yes, please describe the main elements of this policy.",null,null,null,null,1]
[null,"2.2.3",null,"Statistical products are clearly identified so that the public is aware of what the GO  takes responsibility for."]
[null,0,"Q12.","Are global ICP statistical products clearly identified as the product of the GO by name, logo and insignia?",null,null,null,null,1]
[null,0,"Q13.","Does the GO request attribution when its statistics are used or reproduced?",null,null,null,null,1]
[null,"2.2.4",null,"Users of ICP statistics are made aware in advance of major changes in methodology, source data, and statistical techniques."]
[null,0,"Q14.","Does the GO notify users about changes in ICP methodology, source data, and statistical techniques? If yes, please describe how these notifications are made.",null,null,null,null,1]
[null,2.2999999999999998,null,"Ethical standards"]
[null,"2.3.1",null,"A clear set of ethical standards has been prepared."]
[null,0,"Q15.","Does the GO have clear guidelines that connect ethics and staff work and which outline correct behaviour when the GO or its staff are confronted with a potential conflict of interest situation? If yes, please explain briefly the main elements of these guidelines.",null,null,null,null,1]
[null,"2.3.2",null,"Staff is made aware of the ethical standards."]
[null,0,"Q16.","Does the GO management inform new staff of these ethical standards and guidelines when they join the agency?",null,null,null,null,1]
[null,0,"Q17.","Does the GO management periodically remind staff of these ethical standards and guidelines?",null,null,null,null,1]

{"sheet":"3. Methodological Soundness","index":4,"n_rows":29,"n_cols":9,"rows_kept":29,"cut":false,"hidden":false,"merged":[[1,2,1,7],[3,1,3,2],[3,3,3,8],[4,1,4,2],[4,3,4,8],[6,1,6,2],[6,3,6,8],[7,1,7,2],[7,3,7,8],[14,1,14,2],[14,3,14,8],[23,1,23,2],[23,3,23,8],[26,1,26,2],[26,3,26,8],[15,1,15,2],[15,3,15,8],[17,1,17,2],[17,3,17,8],[18,1,18,2],[18,3,18,8],[20,1,20,2],[20,3,20,8],[21,1,21,2],[21,3,21,8],[22,1,22,2],[22,3,22,8]]}
[null,null,"QAF Check Sheet - Global Office",null,null,null,null,"Back to the Index"]
[null,null,"3. Methodological Soundness"]
[null,null,"#",null,"YES","NO","N/A","Comments"]
[null,3.1,null,"Concepts and definitions"]
[null,"3.1.1",null,"Internationally accepted standards, guidelines, or good practices as detailed in the ICP Handbook and relevant ICP technical documents are followed in compiling ICP statistics."]
[null,{"$f":"IF(E6+F6+G6=1, 1, 0)","v":0},"Q1.","Does the GO follow the ICP standards and guidelines detailed in the ICP Handbook and relevant ICP technical documents? Please explain any deviation from the ICP standards and guidelines if any.",null,null,null,null,{"$f":"IF(G6=\"\", 1, IF(H6=\"\",0, 1))","v":1}]
[null,3.2,null,"Scope"]
[null,"3.2.1",null,"The scope of ICP statistics covers all final expenditures included in GDP."]
[null,null,null,null,"Fully","Partially","Not at all","Comments"]
[null,{"$f":"IF(E10+F10+G10=1, 1, 0)","v":0},"Q2.","How many countries participating in the ICP have implemented the 1993 SNA? Please indicate the number of countries in the comments box. ",null,null,null,null,{"$f":"IF(G10=\"\", 1, IF(H10=\"\",0, 1))","v":1}]
[null,null,null,null,"YES","NO","N/A","Comments"]
[null,0,"Q3.","Does the GO have a strategy for improving national accounts statistics for ICP purposes? If yes, please provide details.",null,null,null,null,1]
[null,0,"Q4.","Is there partnership in place between the ICP and the SNA program?",null,null,null,null,1]
[null,0,"Q5.","Does the GO estimate PPPs and volume estimates with internationally accepted estimation techniques for the countries that do not participate in the round?",null,null,null,null,1]
[null,3.3,null,"Classification and sectorization"]
[null,"3.3.1",null,"The classification and sectorization used in the compilation of ICP statistics are in broad conformity with internationally recommended systems."]
[null,0,"Q6.","Does the GO follow the ICP Classification of Expenditure on GDP when defining goods and services to be included in the ICP global product lists?",null,null,null,null,1]
[null,3.4,null,"Basis for recording"]
[null,"3.4.1",null,"The valuation rules used for recording flows and stocks are in accordance with the 1993 SNA."]
[null,0,"Q7.","Do the product specifications on the GO's global product lists include the price-determining characteristics that influence the product's transaction price as well as the product's technical parameters?",null,null,null,null,1]
[null,"3.4.2",null,"The timing rules used for recording flows are in accordance with the 1993 SNA."]
[null,"3.4.3",null,"The grossing/netting procedures are in accordance with the 1993 SNA."]
[null,3.5,null,"Aggregation"]
[null,"3.5.1",null,"Compilation of basic heading PPPs recognizes the concept of representativity and produces transitive basic heading PPPs."]
[null,null,null,null,"CPD","CPRD","Others","Comments"]
[null,0,"Q8.","Is  the  Country-Product-Dummy method (CPD) or the Country-Product-Dummy method with Representativity (CPRD) used to estimate transitive basic heading PPPs at the global level?",null,null,null,null,1]
[null,"3.5.2",null,"Compilation of higher level PPPs avoids bias and produces transitive higher level PPPs."]
[null,null,null,null,"YES","NO","N/A","Comments"]
[null,0,"Q9.","Does the method used to compile higher level PPPs at the global level produce unbiased transitive higher level PPPs that are invariant to choice of country or numéraire currency?",null,null,null,null,1]

{"sheet":"4. Accuracy and Reliability","index":5,"n_rows":65,"n_cols":9,"rows_kept":65,"cut":false,"hidden":false,"merged":[[1,2,1,7],[3,1,3,2],[3,3,3,8],[4,1,4,2],[4,3,4,8],[7,1,7,2],[7,3,7,8],[17,1,17,2],[17,3,17,8],[20,1,20,2],[20,3,20,8],[22,1,22,2],[22,3,22,8],[26,1,26,2],[26,3,26,8],[28,1,28,2],[28,3,28,8],[29,1,29,2],[29,3,29,8],[32,1,32,2],[32,3,32,8],[33,1,33,2],[33,3,33,8],[37,1,37,2],[37,3,37,8],[39,1,39,2],[39,3,39,8],[40,1,40,2],[40,3,40,8],[43,1,43,2],[43,3,43,8],[45,1,45,2],[45,3,45,8],[48,1,48,2],[48,3,48,8],[51,1,51,2],[51,3,51,8],[52,1,52,2],[52,3,52,8],[54,1,54,2],[54,3,54,8],[63,1,63,2],[63,3,63,8],[60,1,60,2],[60,3,60,8],[57,1,57,2],[57,3,57,8],[61,1,61,2],[61,3,61,8]]}
[null,null,"QAF Check Sheet - Global Office",null,null,null,null,"Back to the Index"]
[null,null,"4. Accuracy and Reliability"]
[null,null,"#",null,"YES","NO","N/A","Comments"]
[null,4.0999999999999996,null,"Source data"]
[null,"4.1.1",null,"The data collection programs employed to compile the ICP statistics are adequate."]
[null,{"$f":"IF(E6+F6+G6=1, 1, 0)","v":0},"Q1.","Are the data sources of NCA data collection programs sufficient for the data requirements of the ICP (data on prices, expenditures, housing services, compensation of government employees, mid-year population, etc.)? Please describe any major data gaps.",null,null,null,null,{"$f":"IF(G6=\"\", 1, IF(H6=\"\",0, 1))","v":1}]
[null,{"$f":"IF(E7+F7+G7=1, 1, 0)","v":0},"Q2.","Does the GO review NCA data sources periodically to ensure that NCA data collection programs are comprehensive? If yes, please describe the main findings of these reviews, as well as any follow-up actions.",null,null,null,null,{"$f":"IF(G7=\"\", 1, IF(H7=\"\",0, 1))","v":1}]
[null,"4.1.2",null,"The price collection program is conducted such that adequate price data are available for ICP purposes."]
[null,0,"Q3.","Do the Structured Product Descriptions (SPDs) provide a sound basis for the generation of precise and detailed product specifications for price surveys so as to ensure that the products priced are comparable across the countries pricing them in various regions?",null,null,null,null,1]
[null,0,"Q4.","Does the GO provide guidelines on developing survey frameworks for the collection of prices suitable for computing national annual average prices consistent with the prices underlying final expenditures on GDP?",null,null,null,null,1]
[null,0,"Q5.","Is there a mechanism in place for the RCAs to provide the GO with assessments of the survey frameworks used by NCAs in their region? If yes, please provide a brief description of the main elements of this assessment mechanism.",null,null,null,null,1]
[null,0,"Q6.","Are the price data provided to the GO by the RCAs sufficiently detailed for ICP data validation procedures? Please describe any areas where more detailed information is required.",null,null,null,null,1]
[null,0,"Q7.","Does the GO provide guidance and direction to RCAs and NCAs on the pricing of difficult-to-price items (housing services, equipment goods, construction, government services)?",null,null,null,null,1]
[null,0,"Q8.","Does the GO carry out adequate inter-regional validation of the prices of difficult-to-price items?",null,null,null,null,1]
[null,0,"Q9.","Is the GO's selection of items for the Core Product List based on objective criteria aimed at computing robust factors to link regions in the global comparison? ",null,null,null,null,1]
[null,0,"Q10.","Does the GO provide guidance and direction to RCAs on the selection of items from the Core Product List for inclusion in the regional list and on the subsequent selection of core items for pricing by the NCAs in their region?",null,null,null,null,1]
[null,0,"Q11.","Does the GO carry out adequate inter-regional validation of core product prices collected by the NCAs of various regions?",null,null,null,null,1]
[null,"4.1.3",null,"GDP and the main expenditure aggregates are available for weighting purposes and to generate volume estimates."]
[null,0,"Q12.","Do the RCAs provide GDP expenditure data for all ICP classification levels for the ICP reference year ?",null,null,null,null,1]
[null,0,"Q13.","Do these data respect 1993 SNA guidelines?",null,null,null,null,1]
[null,"4.1.4",null,"Ad hoc data collections are carried out when needed to fill data gaps or to complement data collected in the main surveys. "]
[null,0,"Q14.","Does the GO initiate ad-hoc data collections to fill data gaps or to complement data collected in the main benchmark collections for the ICP? If yes, please provide some examples.",null,null,null,null,1]
[null,"4.1.5",null,"ICP data collection programs are sufficiently open and versatile to allow for new developments in sources."]
[null,0,"Q15.","Does the GO hold periodic meetings with interested parties to identify new developments for ICP purposes?",null,null,null,null,1]
[null,0,"Q16.","Does the GO monitor international standards, guidelines and practices for changes relevant to ICP work?",null,null,null,null,1]
[null,0,"Q17.","Does the GO consult with the RCAs and the NCAs about changes in methodology, standards, guidelines and practices that may affect ICP statistics? ",null,null,null,null,1]
[null,"4.1.6",null,"ICP source data approximate the definitions, scope, classifications, and valuation, and time of recording required. "]
[null,0,"Q18.","Does the GO provide time for pilot data collection in the global calendar of activities?",null,null,null,null,1]
[null,"4.1.7",null,"The ICP data collection program provides adequate coverage of economic activities."]
[null,"4.1.8",null,"The ICP data collection program provides for the timely receipt of data."]
[null,0,"Q19.","Does the GO's data collection and processing timetable meet the timeliness and periodicity requirements for reporting to the Executive Board and TAG?",null,null,null,null,1]
[null,0,"Q20.","Does the GO employ rigorous follow-up procedures to ensure the timely receipt of ICP source data from RCAs?",null,null,null,null,1]
[null,4.2,null,"Assessment of source data"]
[null,"4.2.1",null,"Accuracy of the global data is routinely assessed."]
[null,0,"Q21.","Does the GO check the estimates of final expenditures on GDP it receives from RCAs to ensure that they are correctly compiled and adequate in terms of comprehensiveness, level of detail and up-to-dateness for ICP purposes?",null,null,null,null,1]
[null,0,"Q22.","Does the GO validate the price data it receives from RCA's using the ICP-recommended intra-country and inter-country data validation procedures? If yes, please provide a description of the main validation methods employed.",null,null,null,null,1]
[null,0,"Q23.","Does the GO archive the various versions of its price data (original, validated, used in the global comparison, etc.) for future reference purposes? If yes, please describe the main elements of the archiving system employed.",null,null,null,null,1]
[null,"4.2.2",null,"Accuracy of the information from administrative and other supplementary sources is routinely assessed."]
[null,0,"Q24.","Does the GO routinely assess the accuracy of administrative and other supplementary data used to verify the credibility of ICP statistics?",null,null,null,null,1]
[null,4.3,null,"Statistical techniques"]
[null,"4.3.1",null,"ICP data compilation procedures are sound."]
[null,0,"Q25.","Does the GO employ compilation procedures to minimize processing errors such as coding, editing, and tabulation errors? If yes, please provide a brief description of the procedures employed.",null,null,null,null,1]
[null,0,"Q26.","Does the GO only make adjustments to source data when clearly warranted and then only with the concurrence of the RCA and NCA concerned?",null,null,null,null,1]
[null,"4.3.2",null,"Appropriate measures are taken to validate source data."]
[null,0,"Q27.","Does the GO employ sound estimation techniques to estimate missing observations? Please provide a brief description of the main estimation techniques employed.",null,null,null,null,1]
[null,"4.3.3",null,"Appropriate techniques are used to ensure that data used for weighting purposes are consistent with ICP requirements."]
[null,0,"Q28.","Do statistical procedures used by the GO to adjust country final expenditure data to meet ICP requirements follow a detailed, case-by-case, approach using specific sources that are most closely related to the estimated variables and pertinent to the reference period?",null,null,null,null,1]
[null,0,"Q29.","Adjustments are only made with the concurrence of the NCA concerned? ",null,null,null,null,1]
[null,"4.3.4",null,"Generally-accepted good-practice statistical techniques are used to compile the purchasing power parities. "]
[null,0,"Q30.","Does the method employed by the GO to calculate basic heading PPPs recognize the concept of representativity and produce transitive basic heading PPPs?  If applicable, please explain any major deviations from guidelines.",null,null,null,null,1]
[null,0,"Q31.","Does the method employed by the GO to calculate higher level PPPs avoid bias and produce transitive higher level PPPs that are invariant to the choice of country or numéraire currency? If applicable, please explain any major deviations from guidelines",null,null,null,null,1]
[null,4.4000000000000004,null,"Assessment and validation of intermediate data and statistical outputs"]
[null,"4.4.1",null,"Intermediate results are validated against other independent data."]
[null,0,"Q32.","Does the GO provide global guidelines explaining how NCAs can assess the intermediate data used to compile national annual prices and national accounts expenditures for ICP purposes against other independent data sources when available?",null,null,null,null,1]
[null,"4.4.2",null,"The discrepancies in intermediate data are routinely investigated and measures taken to remove them."]
[null,0,"Q33.","Does the GO use a validation procedure (such as a Quaranta or Dikhanov table) to routinely assess potential discrepancies in intermediate data? Please indicate the validation procedures used.",null,null,null,null,1]
[null,0,"Q34.","Does the GO share with the RCAs the results of this validation procedure before adjustments are made to data?",null,null,null,null,1]
[null,"4.4.3",null,"Unusual or unexpected differences in PPPs among countries are investigated."]
[null,0,"Q35.","Does the GO investigate unusual or unexpected differences among PPPs with the RCAs and the TAG?",null,null,null,null,1]
[null,0,"Q36.","Are comparisons with data from previous ICP rounds used to check the credibility of the latest ICP results?",null,null,null,null,1]
[null,4.5,null,"Revision studies"]
[null,"4.5.1",null,"Revision studies are undertaken on a regular basis."]
[null,0,"Q37.","Does the GO carry out studies to assess its initial estimates of global PPPs and real expenditures against its revised or final estimates? If yes, please provide a brief description of these assessment studies.",null,null,null,null,1]
[null,"4.5.2",null,"Measures are undertaken to incorporate the findings from revision studies in data compilation."]
[null,null,"Q38.","Are findings from revision studies used to refine preliminary data and data collection programs for subsequent ICP rounds?",null,null,null,null,1]

{"sheet":"5. Serviceability","index":6,"n_rows":28,"n_cols":9,"rows_kept":28,"cut":false,"hidden":false,"merged":[[1,2,1,7],[3,1,3,2],[3,3,3,8],[4,1,4,2],[4,3,4,8],[7,1,7,2],[7,3,7,8],[9,1,9,2],[9,3,9,8],[10,1,10,2],[10,3,10,8],[12,1,12,2],[12,3,12,8],[15,1,15,2],[15,3,15,8],[17,1,17,2],[17,3,17,8],[25,1,25,2],[25,3,25,8],[18,1,18,2],[18,3,18,8],[21,1,21,2],[21,3,21,8],[23,1,23,2],[23,3,23,8]]}
[null,null,"QAF Check Sheet - Global Office",null,null,null,null,"Back to the Index"]
[null,null,"5. Serviceability"]
[null,null,"#",null,"YES","NO","N/A","Comments"]
[null,5.0999999999999996,null,"Periodicity and timeliness"]
[null,"5.1.1",null,"The periodicity of the ICP statistics follows understandings reached at the UN Statistical Commission."]
[null,{"$f":"IF(E6+F6+G6=1, 1, 0)","v":0},"Q1.","Are global ICP statistics compiled at least once every six years? ",null,null,null,null,{"$f":"IF(G6=\"\", 1, IF(H6=\"\",0, 1))","v":1}]
[null,{"$f":"IF(E7+F7+G7=1, 1, 0)","v":0},"Q2.","Are global ICP statistics compiled more frequently than once every six years? ",null,null,null,null,{"$f":"IF(G7=\"\", 1, IF(H7=\"\",0, 1))","v":1}]
[null,"5.1.2",null,"The timeliness of ICP statistics follows understandings reached at the UNSC."]
[null,0,"Q3.","Are global ICP statistics disseminated two years after the reference year?",null,null,null,null,1]
[null,5.2,null,"Consistency"]
[null,"5.2.1",null,"ICP statistics are internally consistent."]
[null,0,"Q4.","Are price data received from RCAs consistent with the valuation basis of national accounts final expenditure data, that is there is consistency within the “value = volume x price” framework?",null,null,null,null,1]
[null,"5.2.2",null,"ICP statistics are consistent over time."]
[null,0,"Q5.","Are ICP data received from RCAs in the current round consistent with ICP data received from RCAs in previous rounds?",null,null,null,null,1]
[null,0,"Q6.","Does the GO maintain and disseminate detailed methodological notes that identify and explain the main breaks and discontinuities in methodology, source data and statistical techniques between ICP rounds?",null,null,null,null,1]
[null,"5.2.3",null,"ICP statistics from the latest round are consistent or reconcilable with those derived from earlier ICP rounds. "]
[null,0,"Q7.","Does the GO advise users of the differences, and the reasons for the differences, between the latest global ICP statistics and those derived from earlier rounds?",null,null,null,null,1]
[null,5.3,null,"Revision policy and practice"]
[null,"5.3.1",null,"The practice of revisions from initial estimates to final results follows a predictable pattern of which users are informed."]
[null,0,"Q8.","Are users informed in advance of the timetable for releasing preliminary and final data?",null,null,null,null,1]
[null,0,"Q9.","Are revisions adequately documented in the GO's ICP publications and in the GO's ICP databases accessible to users? ",null,null,null,null,1]
[null,"5.3.2",null,"Users are informed about the preliminary nature of ICP data."]
[null,0,"Q10.","Are users informed at the time of data dissemination when data are preliminary?",null,null,null,null,1]
[null,"5.3.3",null,"Users are informed about the revised nature of data. "]
[null,0,"Q11.","Are users informed at the time of data dissemination when data are revised?",null,null,null,null,1]
[null,"5.3.4",null,"Users are informed of results and studies of the revisions to data."]
[null,0,"Q12.","Does the GO analyse the differences between the revised and preliminary global data for major expenditure aggregates and publish the results to allow an assessment of preliminary data?",null,null,null,null,1]
[null,0,"Q13.","Does the GO explain the findings of revision studies in its ICP publications and in its ICP databases accessible to users? ",null,null,null,null,1]

{"sheet":"6. Accessibility","index":7,"n_rows":35,"n_cols":9,"rows_kept":35,"cut":false,"hidden":false,"merged":[[1,2,1,7],[3,1,3,2],[3,3,3,8],[4,1,4,2],[4,3,4,8],[9,1,9,2],[9,3,9,8],[13,1,13,2],[13,3,13,8],[15,1,15,2],[15,3,15,8],[18,1,18,2],[18,3,18,8],[22,1,22,2],[22,3,22,8],[23,1,23,2],[23,3,23,8],[33,1,33,2],[33,3,33,8],[26,1,26,2],[26,3,26,8],[28,1,28,2],[28,3,28,8],[29,1,29,2],[29,3,29,8]]}
[null,null,"QAF Check Sheet - Global Office",null,null,null,null,"Back to the Index"]
[null,null,"6. Accessibility"]
[null,null,"#",null,"YES","NO","N/A","Comments"]
[null,6.1,null,"Data accessibility"]
[null,"6.1.1",null,"The presentation of ICP statistics is commensurate with users’ needs."]
[null,{"$f":"IF(E6+F6+G6=1, 1, 0)","v":0},"Q1.","Does the price, expenditure and other data provided to the GO by the RCAs include all required details?",null,null,null,null,{"$f":"IF(G6=\"\", 1, IF(H6=\"\",0, 1))","v":1}]
[null,{"$f":"IF(E7+F7+G7=1, 1, 0)","v":0},"Q2.","Are ICP statistics published at the global level with sufficient level of details to meet users’ needs?",null,null,null,null,{"$f":"IF(G7=\"\", 1, IF(H7=\"\",0, 1))","v":1}]
[null,0,"Q3.","Are ICP statistics published at the global level presented in a clear manner with graphs, charts and diagrams disseminated with the data to facilitate analysis?  ",null,null,null,null,1]
[null,0,"Q4.","Is an analysis of the current reference year's circumstances included with dissemination?",null,null,null,null,1]
[null,"6.1.2",null,"ICP statistics are disseminated in formats to suit users’ needs."]
[null,{"$f":"IF(E11+F11+G11=1, 1, 0)","v":0},"Q5.","Does the GO disseminated ICP statistics in ways that facilitate redissemination in the media? ",null,null,null,null,1]
[null,0,"Q6.","Does the GO also disseminate more comprehensive and detailed ICP statistics in paper and electronic formats?",null,null,null,null,1]
[null,0,"Q7.","Can analytical series be assessed, perhaps for a fee, through an electronic data base maintained by the GO? If yes, please provide details.",null,null,null,null,1]
[null,"6.1.3",null,"ICP statistics are released to a pre-announced schedule."]
[null,{"$f":"IF(E15+F15+G15=1, 1, 0)","v":0},"Q8.","Are global ICP results released punctually according to a pre-announced schedule?",null,null,null,null,1]
[null,"6.1.4",null,"ICP statistics are made available to all users at the same time."]
[null,{"$f":"IF(E17+F17+G17=1, 1, 0)","v":0},"Q9.","Are global ICP statistics made available to all interested users simultaneously?",null,null,null,null,1]
[null,0,"Q10.","Does the GO publicize the procedures to access ICP statistics?",null,null,null,null,1]
[null,"6.1.5",null,"ICP data and statistics not routinely disseminated are made available to users upon request."]
[null,{"$f":"IF(E20+F20+G20=1, 1, 0)","v":0},"Q11.","Does the GO have procedures in place to preserve the confidentiality of ICP microdata?",null,null,null,null,1]
[null,0,"Q12.","Does the GO provide users with additional data and details upon request, including customised tabulations (possibly for a fee), according to specific agreed policy or procedures? ? If yes, please provide details of these policies or procedures.",null,null,null,null,1]
[null,0,"Q13.","Does the GO publicise the availability of additional ICP statistics and the procedures for obtaining them?  If yes, please describe the main channels through which this is carried out.",null,null,null,null,1]
[null,6.2,null,"Metadata accessibility"]
[null,"6.2.1",null,"ICP metadata give adequate information about the meaning of the data and about the methodology used to collect and process them."]
[null,{"$f":"IF(E25+F25+G25=1, 1, 0)","v":0},"Q14.","Is a comprehensive document on ICP sources and methods publised at the global level and updated regularly? If yes, please describe the main channels through which this is carried out.",null,null,null,null,1]
[null,0,"Q15.","Are ICP metadata readily accessible through GO websites, statistical publications, etc.?  If yes, please specify relevant websites and publications.",null,null,null,null,1]
[null,"6.2.2",null,"Different levels of metadata detail are made available to meet the requirements of ICP data users."]
[null,{"$f":"IF(E28+F28+G28=1, 1, 0)","v":0},"Q16.","Are both general use and specialised information about ICP statistics available and made public?\n",null,null,null,null,1]
[null,6.3,null,"Assistance to users"]
[null,"6.3.1",null,"Adequate assistance is given to RCAs, NCAs and other users of ICP statistics."]
[null,{"$f":"IF(E31+F31+G31=1, 1, 0)","v":0},"Q17.","Does the GO provide assistance and support to RCAs, NCAs and other users if requested? If yes, please describe the main channels through which this is carried out.",null,null,null,null,1]
[null,0,"Q18.","Does the GO have well-advertised designated contact and access points for all communications with the RCAs, NCAs and other users?",null,null,null,null,1]
[null,0,"Q19.","Are materials to raise awareness of the use of ICP statistics among policy makers, researchers, the business sector, the media, schools and the general public available? If yes, please specify relevant websites and materials.",null,null,null,null,1]
[null,"6.3.2",null,"Catalogs of ICP publications and other services are available to users."]
[null,{"$f":"IF(E35+F35+G35=1, 1, 0)","v":0},"Q20.","Are catalogs detailing ICP publications, documents, other user services and their prices available and updated regularly?",null,null,null,null,1]

{"sheet":"results","index":8,"n_rows":177,"n_cols":8,"rows_kept":177,"cut":false,"hidden":true,"merged":[]}
[{"$f":"'0. Instruction'!B3","v":"ICP Global Office (The World Bank)"},"Comparison"]
["1. Prerequisites of quality",null,"Yes","No ","N/A","Comment",null,"Summary (Yes=1, No=0, N/A=9)"]
["Q1","Q1.",{"$f":"'1. Prerequisites of quality'!E6","v":0},{"$f":"'1. Prerequisites of quality'!F6","v":0},{"$f":"'1. Prerequisites of quality'!G6","v":0},{"$f":"'1. Prerequisites of quality'!H6","v":0},null,{"$f":"IF(C3=1, 1, IF(D3=1, 0, IF(E3=1, 9, \"NOT ANSWERED\")))","v":"NOT ANSWERED"}]
["Q2","Q2.",{"$f":"'1. Prerequisites of quality'!E7","v":0},{"$f":"'1. Prerequisites of quality'!F7","v":0},{"$f":"'1. Prerequisites of quality'!G7","v":0},{"$f":"'1. Prerequisites of quality'!H7","v":0},null,{"$f":"IF(C4=1, 1, IF(D4=1, 0, IF(E4=1, 9, \"NOT ANSWERED\")))","v":"NOT ANSWERED"}]
["Q3","Q3.",{"$f":"'1. Prerequisites of quality'!E9","v":0},{"$f":"'1. Prerequisites of quality'!F9","v":0},{"$f":"'1. Prerequisites of quality'!G9","v":0},{"$f":"'1. Prerequisites of quality'!H9","v":0},null,"NOT ANSWERED"]
["Q4","Q4.",{"$f":"'1. Prerequisites of quality'!E10","v":0},{"$f":"'1. Prerequisites of quality'!F10","v":0},{"$f":"'1. Prerequisites of quality'!G10","v":0},{"$f":"'1. Prerequisites of quality'!H10","v":0},null,"NOT ANSWERED"]
[null,"Q5.",null,null,null,null,null,"NOT ANSWERED"]
["Q5","Q6.",{"$f":"'1. Prerequisites of quality'!E12","v":0},{"$f":"'1. Prerequisites of quality'!F12","v":0},{"$f":"'1. Prerequisites of quality'!G12","v":0},{"$f":"'1. Prerequisites of quality'!H12","v":0},null,"NOT ANSWERED"]
["Q6","Q7.",{"$f":"'1. Prerequisites of quality'!E14","v":0},{"$f":"'1. Prerequisites of quality'!F14","v":0},{"$f":"'1. Prerequisites of quality'!G14","v":0},{"$f":"'1. Prerequisites of quality'!H14","v":0},null,"NOT ANSWERED"]
["Q7","Q8.",{"$f":"'1. Prerequisites of quality'!E15","v":0},{"$f":"'1. Prerequisites of quality'!F15","v":0},{"$f":"'1. Prerequisites of quality'!G15","v":0},{"$f":"'1. Prerequisites of quality'!H15","v":0},null,"NOT ANSWERED"]
["Q8","Q9.",{"$f":"'1. Prerequisites of quality'!E16","v":0},{"$f":"'1. Prerequisites of quality'!F16","v":0},{"$f":"'1. Prerequisites of quality'!G16","v":0},{"$f":"'1. Prerequisites of quality'!H16","v":0},null,"NOT ANSWERED"]
["Q9","Q10.",{"$f":"'1. Prerequisites of quality'!E17","v":0},{"$f":"'1. Prerequisites of quality'!F17","v":0},{"$f":"'1. Prerequisites of quality'!G17","v":0},{"$f":"'1. Prerequisites of quality'!H17","v":0},null,"NOT ANSWERED"]
["Q10","Q11.",{"$f":"'1. Prerequisites of quality'!E18","v":0},{"$f":"'1. Prerequisites of quality'!F18","v":0},{"$f":"'1. Prerequisites of quality'!G18","v":0},{"$f":"'1. Prerequisites of quality'!H18","v":0},null,"NOT ANSWERED"]
["Q11","Q12.",{"$f":"'1. Prerequisites of quality'!E19","v":0},{"$f":"'1. Prerequisites of quality'!F19","v":0},{"$f":"'1. Prerequisites of quality'!G19","v":0},{"$f":"'1. Prerequisites of quality'!H19","v":0},null,"NOT ANSWERED"]
["Q12","Q13.",{"$f":"'1. Prerequisites of quality'!E21","v":0},{"$f":"'1. Prerequisites of quality'!F21","v":0},{"$f":"'1. Prerequisites of quality'!G21","v":0},{"$f":"'1. Prerequisites of quality'!H21","v":0},null,"NOT ANSWERED"]
["Q13","Q14.",{"$f":"'1. Prerequisites of quality'!E23","v":0},{"$f":"'1. Prerequisites of quality'!F23","v":0},{"$f":"'1. Prerequisites of quality'!G23","v":0},{"$f":"'1. Prerequisites of quality'!H23","v":0},null,"NOT ANSWERED"]
["Q14","Q15.",{"$f":"'1. Prerequisites of quality'!E24","v":0},{"$f":"'1. Prerequisites of quality'!F24","v":0},{"$f":"'1. Prerequisites of quality'!G24","v":0},{"$f":"'1. Prerequisites of quality'!H24","v":0},null,"NOT ANSWERED"]
["Q15","Q16.",{"$f":"'1. Prerequisites of quality'!E27","v":0},{"$f":"'1. Prerequisites of quality'!F27","v":0},{"$f":"'1. Prerequisites of quality'!G27","v":0},{"$f":"'1. Prerequisites of quality'!H27","v":0},null,"NOT ANSWERED"]
["Q16","Q17.",{"$f":"'1. Prerequisites of quality'!E28","v":0},{"$f":"'1. Prerequisites of quality'!F28","v":0},{"$f":"'1. Prerequisites of quality'!G28","v":0},{"$f":"'1. Prerequisites of quality'!H28","v":0},null,"NOT ANSWERED"]
["Q17","Q18.",{"$f":"'1. Prerequisites of quality'!E29","v":0},{"$f":"'1. Prerequisites of quality'!F29","v":0},{"$f":"'1. Prerequisites of quality'!G29","v":0},{"$f":"'1. Prerequisites of quality'!H29","v":0},null,"NOT ANSWERED"]
["Q18","Q19.",{"$f":"'1. Prerequisites of quality'!E31","v":0},{"$f":"'1. Prerequisites of quality'!F31","v":0},{"$f":"'1. Prerequisites of quality'!G31","v":0},{"$f":"'1. Prerequisites of quality'!H31","v":0},null,"NOT ANSWERED"]
["Q19","Q20.",{"$f":"'1. Prerequisites of quality'!E32","v":0},{"$f":"'1. Prerequisites of quality'!F32","v":0},{"$f":"'1. Prerequisites of quality'!G32","v":0},{"$f":"'1. Prerequisites of quality'!H32","v":0},null,"NOT ANSWERED"]
["Q20","Q21.",{"$f":"'1. Prerequisites of quality'!E34","v":0},{"$f":"'1. Prerequisites of quality'!F34","v":0},{"$f":"'1. Prerequisites of quality'!G34","v":0},{"$f":"'1. Prerequisites of quality'!H34","v":0},null,"NOT ANSWERED"]
["Q21","Q22.",{"$f":"'1. Prerequisites of quality'!E36","v":0},{"$f":"'1. Prerequisites of quality'!F36","v":0},{"$f":"'1. Prerequisites of quality'!G36","v":0},{"$f":"'1. Prerequisites of quality'!H36","v":0},null,"NOT ANSWERED"]
["Q22","Q23.",{"$f":"'1. Prerequisites of quality'!E37","v":0},{"$f":"'1. Prerequisites of quality'!F37","v":0},{"$f":"'1. Prerequisites of quality'!G37","v":0},{"$f":"'1. Prerequisites of quality'!H37","v":0},null,"NOT ANSWERED"]
["Q23","Q24.",{"$f":"'1. Prerequisites of quality'!E39","v":0},{"$f":"'1. Prerequisites of quality'!F39","v":0},{"$f":"'1. Prerequisites of quality'!G39","v":0},{"$f":"'1. Prerequisites of quality'!H39","v":0},null,"NOT ANSWERED"]
["Q24","Q25.",{"$f":"'1. Prerequisites of quality'!E40","v":0},{"$f":"'1. Prerequisites of quality'!F40","v":0},{"$f":"'1. Prerequisites of quality'!G40","v":0},{"$f":"'1. Prerequisites of quality'!H40","v":0},null,"NOT ANSWERED"]
["Q25","Q26.",{"$f":"'1. Prerequisites of quality'!E41","v":0},{"$f":"'1. Prerequisites of quality'!F41","v":0},{"$f":"'1. Prerequisites of quality'!G41","v":0},{"$f":"'1. Prerequisites of quality'!H41","v":0},null,"NOT ANSWERED"]
["Q26","Q27.",{"$f":"'1. Prerequisites of quality'!E43","v":0},{"$f":"'1. Prerequisites of quality'!F43","v":0},{"$f":"'1. Prerequisites of quality'!G43","v":0},{"$f":"'1. Prerequisites of quality'!H43","v":0},null,"NOT ANSWERED"]
["Q27","Q28.",{"$f":"'1. Prerequisites of quality'!E46","v":0},{"$f":"'1. Prerequisites of quality'!F46","v":0},{"$f":"'1. Prerequisites of quality'!G46","v":0},{"$f":"'1. Prerequisites of quality'!H46","v":0},null,"NOT ANSWERED"]
["Q28","Q29.",{"$f":"'1. Prerequisites of quality'!E48","v":0},{"$f":"'1. Prerequisites of quality'!F48","v":0},{"$f":"'1. Prerequisites of quality'!G48","v":0},{"$f":"'1. Prerequisites of quality'!H48","v":0},null,"NOT ANSWERED"]
["Q29","Q30.",{"$f":"'1. Prerequisites of quality'!E49","v":0},{"$f":"'1. Prerequisites of quality'!F49","v":0},{"$f":"'1. Prerequisites of quality'!G49","v":0},{"$f":"'1. Prerequisites of quality'!H49","v":0},null,"NOT ANSWERED"]
["Q30","Q31.",{"$f":"'1. Prerequisites of quality'!E52","v":0},{"$f":"'1. Prerequisites of quality'!F52","v":0},{"$f":"'1. Prerequisites of quality'!G52","v":0},{"$f":"'1. Prerequisites of quality'!H52","v":0},null,"NOT ANSWERED"]
["Q31","Q32.",{"$f":"'1. Prerequisites of quality'!E53","v":0},{"$f":"'1. Prerequisites of quality'!F53","v":0},{"$f":"'1. Prerequisites of quality'!G53","v":0},{"$f":"'1. Prerequisites of quality'!H53","v":0},null,"NOT ANSWERED"]
["Q32","Q33.",{"$f":"'1. Prerequisites of quality'!E54","v":0},{"$f":"'1. Prerequisites of quality'!F54","v":0},{"$f":"'1. Prerequisites of quality'!G54","v":0},{"$f":"'1. Prerequisites of quality'!H54","v":0},null,"NOT ANSWERED"]
["Q33","Q34.",{"$f":"'1. Prerequisites of quality'!E55","v":0},{"$f":"'1. Prerequisites of quality'!F55","v":0},{"$f":"'1. Prerequisites of quality'!G55","v":0},{"$f":"'1. Prerequisites of quality'!H55","v":0},null,"NOT ANSWERED"]
["Q34","Q35.",{"$f":"'1. Prerequisites of quality'!E57","v":0},{"$f":"'1. Prerequisites of quality'!F57","v":0},{"$f":"'1. Prerequisites of quality'!G57","v":0},{"$f":"'1. Prerequisites of quality'!H57","v":0},null,"NOT ANSWERED"]
["Q35","Q36.",{"$f":"'1. Prerequisites of quality'!E58","v":0},{"$f":"'1. Prerequisites of quality'!F58","v":0},{"$f":"'1. Prerequisites of quality'!G58","v":0},{"$f":"'1. Prerequisites of quality'!H58","v":0},null,"NOT ANSWERED"]
["Q36","Q37.",{"$f":"'1. Prerequisites of quality'!E59","v":0},{"$f":"'1. Prerequisites of quality'!F59","v":0},{"$f":"'1. Prerequisites of quality'!G59","v":0},{"$f":"'1. Prerequisites of quality'!H59","v":0},null,"NOT ANSWERED"]
["Q37","Q38.",{"$f":"'1. Prerequisites of quality'!E61","v":0},{"$f":"'1. Prerequisites of quality'!F61","v":0},{"$f":"'1. Prerequisites of quality'!G61","v":0},{"$f":"'1. Prerequisites of quality'!H61","v":0},null,"NOT ANSWERED"]
["2. Assurance of Integrity"]
["Q1","Q1.",{"$f":"'2. Assurance of Integrity'!E6","v":0},{"$f":"'2. Assurance of Integrity'!F6","v":0},{"$f":"'2. Assurance of Integrity'!G6","v":0},{"$f":"'2. Assurance of Integrity'!H6","v":0}]
["Q2","Q2.",{"$f":"'2. Assurance of Integrity'!E8","v":0},{"$f":"'2. Assurance of Integrity'!F8","v":0},{"$f":"'2. Assurance of Integrity'!G8","v":0},{"$f":"'2. Assurance of Integrity'!H8","v":0}]
["Q3","Q3.",{"$f":"'2. Assurance of Integrity'!E9","v":0},{"$f":"'2. Assurance of Integrity'!F9","v":0},{"$f":"'2. Assurance of Integrity'!G9","v":0},{"$f":"'2. Assurance of Integrity'!H9","v":0}]
["Q4","Q4.",{"$f":"'2. Assurance of Integrity'!E10","v":0},{"$f":"'2. Assurance of Integrity'!F10","v":0},{"$f":"'2. Assurance of Integrity'!G10","v":0},{"$f":"'2. Assurance of Integrity'!H10","v":0}]
["Q5","Q5.",{"$f":"'2. Assurance of Integrity'!E12","v":0},{"$f":"'2. Assurance of Integrity'!F12","v":0},{"$f":"'2. Assurance of Integrity'!G12","v":0},{"$f":"'2. Assurance of Integrity'!H12","v":0}]
["Q6","Q6.",{"$f":"'2. Assurance of Integrity'!E14","v":0},{"$f":"'2. Assurance of Integrity'!F14","v":0},{"$f":"'2. Assurance of Integrity'!G14","v":0},{"$f":"'2. Assurance of Integrity'!H14","v":0}]
["Q7","Q7.",{"$f":"'2. Assurance of Integrity'!E16","v":0},{"$f":"'2. Assurance of Integrity'!F16","v":0},{"$f":"'2. Assurance of Integrity'!G16","v":0},{"$f":"'2. Assurance of Integrity'!H16","v":0}]
["Q8","Q8.",{"$f":"'2. Assurance of Integrity'!E17","v":0},{"$f":"'2. Assurance of Integrity'!F17","v":0},{"$f":"'2. Assurance of Integrity'!G17","v":0},{"$f":"'2. Assurance of Integrity'!H17","v":0}]
["Q9","Q9.",{"$f":"'2. Assurance of Integrity'!E18","v":0},{"$f":"'2. Assurance of Integrity'!F18","v":0},{"$f":"'2. Assurance of Integrity'!G18","v":0},{"$f":"'2. Assurance of Integrity'!H18","v":0}]
["Q10","Q10.",{"$f":"'2. Assurance of Integrity'!E21","v":0},{"$f":"'2. Assurance of Integrity'!F21","v":0},{"$f":"'2. Assurance of Integrity'!G21","v":0},{"$f":"'2. Assurance of Integrity'!H21","v":0}]
["Q11","Q11.",{"$f":"'2. Assurance of Integrity'!E23","v":0},{"$f":"'2. Assurance of Integrity'!F23","v":0},{"$f":"'2. Assurance of Integrity'!G23","v":0},{"$f":"'2. Assurance of Integrity'!H23","v":0}]
["Q12","Q12.",{"$f":"'2. Assurance of Integrity'!E25","v":0},{"$f":"'2. Assurance of Integrity'!F25","v":0},{"$f":"'2. Assurance of Integrity'!G25","v":0},{"$f":"'2. Assurance of Integrity'!H25","v":0}]
["Q13","Q13.",{"$f":"'2. Assurance of Integrity'!E26","v":0},{"$f":"'2. Assurance of Integrity'!F26","v":0},{"$f":"'2. Assurance of Integrity'!G26","v":0},{"$f":"'2. Assurance of Integrity'!H26","v":0}]
["Q14","Q14.",{"$f":"'2. Assurance of Integrity'!E28","v":0},{"$f":"'2. Assurance of Integrity'!F28","v":0},{"$f":"'2. Assurance of Integrity'!G28","v":0},{"$f":"'2. Assurance of Integrity'!H28","v":0}]
["Q15","Q15.",{"$f":"'2. Assurance of Integrity'!E31","v":0},{"$f":"'2. Assurance of Integrity'!F31","v":0},{"$f":"'2. Assurance of Integrity'!G31","v":0},{"$f":"'2. Assurance of Integrity'!H31","v":0}]
["Q16","Q16.",{"$f":"'2. Assurance of Integrity'!E33","v":0},{"$f":"'2. Assurance of Integrity'!F33","v":0},{"$f":"'2. Assurance of Integrity'!G33","v":0},{"$f":"'2. Assurance of Integrity'!H33","v":0}]
["Q17","Q17.",{"$f":"'2. Assurance of Integrity'!E34","v":0},{"$f":"'2. Assurance of Integrity'!F34","v":0},{"$f":"'2. Assurance of Integrity'!G34","v":0},{"$f":"'2. Assurance of Integrity'!H34","v":0}]
["3. Methodological Soundness"]
["Q1","Q1",{"$f":"'3. Methodological Soundness'!E6","v":0},{"$f":"'3. Methodological Soundness'!F6","v":0},{"$f":"'3. Methodological Soundness'!G6","v":0},{"$f":"'3. Methodological Soundness'!H6","v":0}]
["Q2","Q2",{"$f":"'3. Methodological Soundness'!E10","v":0},{"$f":"'3. Methodological Soundness'!F10","v":0},{"$f":"'3. Methodological Soundness'!G10","v":0},{"$f":"'3. Methodological Soundness'!H10","v":0}]
[null,"Q3"]
[null,"Q4"]
[null,"Q5"]
["Q3","Q6",{"$f":"'3. Methodological Soundness'!E12","v":0},{"$f":"'3. Methodological Soundness'!F12","v":0},{"$f":"'3. Methodological Soundness'!G12","v":0},{"$f":"'3. Methodological Soundness'!H12","v":0}]
["Q4","Q7",{"$f":"'3. Methodological Soundness'!E13","v":0},{"$f":"'3. Methodological Soundness'!F13","v":0},{"$f":"'3. Methodological Soundness'!G13","v":0},{"$f":"'3. Methodological Soundness'!H13","v":0}]
["Q5","Q8",{"$f":"'3. Methodological Soundness'!E14","v":0},{"$f":"'3. Methodological Soundness'!F14","v":0},{"$f":"'3. Methodological Soundness'!G14","v":0},{"$f":"'3. Methodological Soundness'!H14","v":0}]
["Q6","Q9",{"$f":"'3. Methodological Soundness'!E17","v":0},{"$f":"'3. Methodological Soundness'!F17","v":0},{"$f":"'3. Methodological Soundness'!G17","v":0},{"$f":"'3. Methodological Soundness'!H17","v":0}]
[null,"Q10"]
[null,"Q11"]
[null,"Q12"]
[null,"Q13"]
[null,"Q14"]
[null,"Q15"]
[null,"Q16"]
[null,"Q17"]
[null,"Q18"]
[null,"Q19"]
[null,"Q20"]
[null,"Q21"]
[null,"Q22"]
[null,"Q23"]
[null,"Q24"]
[null,"Q25"]
["Q7","Q26",{"$f":"'3. Methodological Soundness'!E20","v":0},{"$f":"'3. Methodological Soundness'!F20","v":0},{"$f":"'3. Methodological Soundness'!G20","v":0},{"$f":"'3. Methodological Soundness'!H20","v":0}]
[null,"Q27"]
[null,"Q28"]
[null,"Q29"]
[null,"Q30"]
[null,"Q31"]
[null,"Q32"]
[null,"Q33"]
["Q8","Q34",{"$f":"'3. Methodological Soundness'!E26","v":0},{"$f":"'3. Methodological Soundness'!F26","v":0},{"$f":"'3. Methodological Soundness'!G26","v":0},{"$f":"'3. Methodological Soundness'!H26","v":0}]
["Q9","Q35",{"$f":"'3. Methodological Soundness'!E29","v":0},{"$f":"'3. Methodological Soundness'!F29","v":0},{"$f":"'3. Methodological Soundness'!G29","v":0},{"$f":"'3. Methodological Soundness'!H29","v":0}]
["4. Accuracy and Reliability"]
["Q1","Q1",{"$f":"'4. Accuracy and Reliability'!E6","v":0},{"$f":"'4. Accuracy and Reliability'!F6","v":0},{"$f":"'4. Accuracy and Reliability'!G6","v":0},{"$f":"'4. Accuracy and Reliability'!H6","v":0}]
["Q2","Q2",{"$f":"'4. Accuracy and Reliability'!E7","v":0},{"$f":"'4. Accuracy and Reliability'!F7","v":0},{"$f":"'4. Accuracy and Reliability'!G7","v":0},{"$f":"'4. Accuracy and Reliability'!H7","v":0}]
["Q3","Q3",{"$f":"'4. Accuracy and Reliability'!E9","v":0},{"$f":"'4. Accuracy and Reliability'!F9","v":0},{"$f":"'4. Accuracy and Reliability'!G9","v":0},{"$f":"'4. Accuracy and Reliability'!H9","v":0}]
["Q4","Q4",{"$f":"'4. Accuracy and Reliability'!E10","v":0},{"$f":"'4. Accuracy and Reliability'!F10","v":0},{"$f":"'4. Accuracy and Reliability'!G10","v":0},{"$f":"'4. Accuracy and Reliability'!H10","v":0}]
["Q5","Q5",{"$f":"'4. Accuracy and Reliability'!E11","v":0},{"$f":"'4. Accuracy and Reliability'!F11","v":0},{"$f":"'4. Accuracy and Reliability'!G11","v":0},{"$f":"'4. Accuracy and Reliability'!H11","v":0}]
["Q6","Q6",{"$f":"'4. Accuracy and Reliability'!E12","v":0},{"$f":"'4. Accuracy and Reliability'!F12","v":0},{"$f":"'4. Accuracy and Reliability'!G12","v":0},{"$f":"'4. Accuracy and Reliability'!H12","v":0}]
["Q7","Q7",{"$f":"'4. Accuracy and Reliability'!E13","v":0},{"$f":"'4. Accuracy and Reliability'!F13","v":0},{"$f":"'4. Accuracy and Reliability'!G13","v":0},{"$f":"'4. Accuracy and Reliability'!H13","v":0}]
["Q8","Q8",{"$f":"'4. Accuracy and Reliability'!E14","v":0},{"$f":"'4. Accuracy and Reliability'!F14","v":0},{"$f":"'4. Accuracy and Reliability'!G14","v":0},{"$f":"'4. Accuracy and Reliability'!H14","v":0}]
["Q9","Q9",{"$f":"'4. Accuracy and Reliability'!E15","v":0},{"$f":"'4. Accuracy and Reliability'!F15","v":0},{"$f":"'4. Accuracy and Reliability'!G15","v":0},{"$f":"'4. Accuracy and Reliability'!H15","v":0}]
["Q10","Q10",{"$f":"'4. Accuracy and Reliability'!E16","v":0},{"$f":"'4. Accuracy and Reliability'!F16","v":0},{"$f":"'4. Accuracy and Reliability'!G16","v":0},{"$f":"'4. Accuracy and Reliability'!H16","v":0}]
["Q11","Q11",{"$f":"'4. Accuracy and Reliability'!E17","v":0},{"$f":"'4. Accuracy and Reliability'!F17","v":0},{"$f":"'4. Accuracy and Reliability'!G17","v":0},{"$f":"'4. Accuracy and Reliability'!H17","v":0}]
["Q12","Q12",{"$f":"'4. Accuracy and Reliability'!E19","v":0},{"$f":"'4. Accuracy and Reliability'!F19","v":0},{"$f":"'4. Accuracy and Reliability'!G19","v":0},{"$f":"'4. Accuracy and Reliability'!H19","v":0}]
["Q13","Q13",{"$f":"'4. Accuracy and Reliability'!E20","v":0},{"$f":"'4. Accuracy and Reliability'!F20","v":0},{"$f":"'4. Accuracy and Reliability'!G20","v":0},{"$f":"'4. Accuracy and Reliability'!H20","v":0}]
["Q14","Q14",{"$f":"'4. Accuracy and Reliability'!E22","v":0},{"$f":"'4. Accuracy and Reliability'!F22","v":0},{"$f":"'4. Accuracy and Reliability'!G22","v":0},{"$f":"'4. Accuracy and Reliability'!H22","v":0}]
["Q15","Q15",{"$f":"'4. Accuracy and Reliability'!E24","v":0},{"$f":"'4. Accuracy and Reliability'!F24","v":0},{"$f":"'4. Accuracy and Reliability'!G24","v":0},{"$f":"'4. Accuracy and Reliability'!H24","v":0}]
["Q16","Q16",{"$f":"'4. Accuracy and Reliability'!E25","v":0},{"$f":"'4. Accuracy and Reliability'!F25","v":0},{"$f":"'4. Accuracy and Reliability'!G25","v":0},{"$f":"'4. Accuracy and Reliability'!H25","v":0}]
["Q17","Q17",{"$f":"'4. Accuracy and Reliability'!E26","v":0},{"$f":"'4. Accuracy and Reliability'!F26","v":0},{"$f":"'4. Accuracy and Reliability'!G26","v":0},{"$f":"'4. Accuracy and Reliability'!H26","v":0}]
["Q18","Q18",{"$f":"'4. Accuracy and Reliability'!E28","v":0},{"$f":"'4. Accuracy and Reliability'!F28","v":0},{"$f":"'4. Accuracy and Reliability'!G28","v":0},{"$f":"'4. Accuracy and Reliability'!H28","v":0}]
[null,"Q19"]
[null,"Q20"]
[null,"Q21"]
[null,"Q22"]
[null,"Q23"]
["Q19","Q24",{"$f":"'4. Accuracy and Reliability'!E31","v":0},{"$f":"'4. Accuracy and Reliability'!F31","v":0},{"$f":"'4. Accuracy and Reliability'!G31","v":0},{"$f":"'4. Accuracy and Reliability'!H31","v":0}]
["Q20","Q25",{"$f":"'4. Accuracy and Reliability'!E32","v":0},{"$f":"'4. Accuracy and Reliability'!F32","v":0},{"$f":"'4. Accuracy and Reliability'!G32","v":0},{"$f":"'4. Accuracy and Reliability'!H32","v":0}]
["Q21","Q26",{"$f":"'4. Accuracy and Reliability'!E35","v":0},{"$f":"'4. Accuracy and Reliability'!F35","v":0},{"$f":"'4. Accuracy and Reliability'!G35","v":0},{"$f":"'4. Accuracy and Reliability'!H35","v":0}]
["Q22","Q27",{"$f":"'4. Accuracy and Reliability'!E36","v":0},{"$f":"'4. Accuracy and Reliability'!F36","v":0},{"$f":"'4. Accuracy and Reliability'!G36","v":0},{"$f":"'4. Accuracy and Reliability'!H36","v":0}]
["Q23","Q28",{"$f":"'4. Accuracy and Reliability'!E37","v":0},{"$f":"'4. Accuracy and Reliability'!F37","v":0},{"$f":"'4. Accuracy and Reliability'!G37","v":0},{"$f":"'4. Accuracy and Reliability'!H37","v":0}]
["Q24","Q29",{"$f":"'4. Accuracy and Reliability'!E39","v":0},{"$f":"'4. Accuracy and Reliability'!F39","v":0},{"$f":"'4. Accuracy and Reliability'!G39","v":0},{"$f":"'4. Accuracy and Reliability'!H39","v":0}]
["Q25","Q30",{"$f":"'4. Accuracy and Reliability'!E42","v":0},{"$f":"'4. Accuracy and Reliability'!F42","v":0},{"$f":"'4. Accuracy and Reliability'!G42","v":0},{"$f":"'4. Accuracy and Reliability'!H42","v":0}]
["Q26","Q31",{"$f":"'4. Accuracy and Reliability'!E43","v":0},{"$f":"'4. Accuracy and Reliability'!F43","v":0},{"$f":"'4. Accuracy and Reliability'!G43","v":0},{"$f":"'4. Accuracy and Reliability'!H43","v":0}]
["Q27","Q32",{"$f":"'4. Accuracy and Reliability'!E45","v":0},{"$f":"'4. Accuracy and Reliability'!F45","v":0},{"$f":"'4. Accuracy and Reliability'!G45","v":0},{"$f":"'4. Accuracy and Reliability'!H45","v":0}]
["Q28","Q33",{"$f":"'4. Accuracy and Reliability'!E47","v":0},{"$f":"'4. Accuracy and Reliability'!F47","v":0},{"$f":"'4. Accuracy and Reliability'!G47","v":0},{"$f":"'4. Accuracy and Reliability'!H47","v":0}]
["Q29","Q34",{"$f":"'4. Accuracy and Reliability'!E48","v":0},{"$f":"'4. Accuracy and Reliability'!F48","v":0},{"$f":"'4. Accuracy and Reliability'!G48","v":0},{"$f":"'4. Accuracy and Reliability'!H48","v":0}]
[null,"Q35"]
["Q30","Q36",{"$f":"'4. Accuracy and Reliability'!E50","v":0},{"$f":"'4. Accuracy and Reliability'!F50","v":0},{"$f":"'4. Accuracy and Reliability'!G50","v":0},{"$f":"'4. Accuracy and Reliability'!H50","v":0}]
["Q31","Q37",{"$f":"'4. Accuracy and Reliability'!E51","v":0},{"$f":"'4. Accuracy and Reliability'!F51","v":0},{"$f":"'4. Accuracy and Reliability'!G51","v":0},{"$f":"'4. Accuracy and Reliability'!H51","v":0}]
["Q32","Q38",{"$f":"'4. Accuracy and Reliability'!E54","v":0},{"$f":"'4. Accuracy and Reliability'!F54","v":0},{"$f":"'4. Accuracy and Reliability'!G54","v":0},{"$f":"'4. Accuracy and Reliability'!H54","v":0}]
["Q33","Q39",{"$f":"'4. Accuracy and Reliability'!E56","v":0},{"$f":"'4. Accuracy and Reliability'!F56","v":0},{"$f":"'4. Accuracy and Reliability'!G56","v":0},{"$f":"'4. Accuracy and Reliability'!H56","v":0}]
["Q34","Q40",{"$f":"'4. Accuracy and Reliability'!E57","v":0},{"$f":"'4. Accuracy and Reliability'!F57","v":0},{"$f":"'4. Accuracy and Reliability'!G57","v":0},{"$f":"'4. Accuracy and Reliability'!H57","v":0}]
[null,"Q41"]
["Q35","Q42",{"$f":"'4. Accuracy and Reliability'!E59","v":0},{"$f":"'4. Accuracy and Reliability'!F59","v":0},{"$f":"'4. Accuracy and Reliability'!G59","v":0},{"$f":"'4. Accuracy and Reliability'!H59","v":0}]
["Q36","Q43",{"$f":"'4. Accuracy and Reliability'!E60","v":0},{"$f":"'4. Accuracy and Reliability'!F60","v":0},{"$f":"'4. Accuracy and Reliability'!G60","v":0},{"$f":"'4. Accuracy and Reliability'!H60","v":0}]
["Q37","Q44",{"$f":"'4. Accuracy and Reliability'!E63","v":0},{"$f":"'4. Accuracy and Reliability'!F63","v":0},{"$f":"'4. Accuracy and Reliability'!G63","v":0},{"$f":"'4. Accuracy and Reliability'!H63","v":0}]
["Q38","Q45",{"$f":"'4. Accuracy and Reliability'!E65","v":0},{"$f":"'4. Accuracy and Reliability'!F65","v":0},{"$f":"'4. Accuracy and Reliability'!G65","v":0},{"$f":"'4. Accuracy and Reliability'!H65","v":0}]
["5. Serviceability"]
["Q1","Q1.",{"$f":"'5. Serviceability'!E6","v":0},{"$f":"'5. Serviceability'!F6","v":0},{"$f":"'5. Serviceability'!G6","v":0},{"$f":"'5. Serviceability'!H6","v":0}]
["Q2","Q2.",{"$f":"'5. Serviceability'!E7","v":0},{"$f":"'5. Serviceability'!F7","v":0},{"$f":"'5. Serviceability'!G7","v":0},{"$f":"'5. Serviceability'!H7","v":0}]
["Q3","Q3.",{"$f":"'5. Serviceability'!E9","v":0},{"$f":"'5. Serviceability'!F9","v":0},{"$f":"'5. Serviceability'!G9","v":0},{"$f":"'5. Serviceability'!H9","v":0}]
["Q4","Q4.",{"$f":"'5. Serviceability'!E12","v":0},{"$f":"'5. Serviceability'!F12","v":0},{"$f":"'5. Serviceability'!G12","v":0},{"$f":"'5. Serviceability'!H12","v":0}]
["Q5","Q5.",{"$f":"'5. Serviceability'!E14","v":0},{"$f":"'5. Serviceability'!F14","v":0},{"$f":"'5. Serviceability'!G14","v":0},{"$f":"'5. Serviceability'!H14","v":0}]
["Q6","Q6.",{"$f":"'5. Serviceability'!E15","v":0},{"$f":"'5. Serviceability'!F15","v":0},{"$f":"'5. Serviceability'!G15","v":0},{"$f":"'5. Serviceability'!H15","v":0}]
["Q7","Q7.",{"$f":"'5. Serviceability'!E17","v":0},{"$f":"'5. Serviceability'!F17","v":0},{"$f":"'5. Serviceability'!G17","v":0},{"$f":"'5. Serviceability'!H17","v":0}]
["Q8","Q8.",{"$f":"'5. Serviceability'!E20","v":0},{"$f":"'5. Serviceability'!F20","v":0},{"$f":"'5. Serviceability'!G20","v":0},{"$f":"'5. Serviceability'!H20","v":0}]
["Q9","Q9.",{"$f":"'5. Serviceability'!E21","v":0},{"$f":"'5. Serviceability'!F21","v":0},{"$f":"'5. Serviceability'!G21","v":0},{"$f":"'5. Serviceability'!H21","v":0}]
["Q10","Q10.",{"$f":"'5. Serviceability'!E23","v":0},{"$f":"'5. Serviceability'!F23","v":0},{"$f":"'5. Serviceability'!G23","v":0},{"$f":"'5. Serviceability'!H23","v":0}]
["Q11","Q11.",{"$f":"'5. Serviceability'!E25","v":0},{"$f":"'5. Serviceability'!F25","v":0},{"$f":"'5. Serviceability'!G25","v":0},{"$f":"'5. Serviceability'!H25","v":0}]
["Q12","Q12.",{"$f":"'5. Serviceability'!E27","v":0},{"$f":"'5. Serviceability'!F27","v":0},{"$f":"'5. Serviceability'!G27","v":0},{"$f":"'5. Serviceability'!H27","v":0}]
["Q13","Q13.",{"$f":"'5. Serviceability'!E28","v":0},{"$f":"'5. Serviceability'!F28","v":0},{"$f":"'5. Serviceability'!G28","v":0},{"$f":"'5. Serviceability'!H28","v":0}]
["6. Accessibility"]
["Q1","Q1",{"$f":"'6. Accessibility'!E6","v":0},{"$f":"'6. Accessibility'!F6","v":0},{"$f":"'6. Accessibility'!G6","v":0},{"$f":"'6. Accessibility'!H6","v":0}]
["Q2","Q2",{"$f":"'6. Accessibility'!E7","v":0},{"$f":"'6. Accessibility'!F7","v":0},{"$f":"'6. Accessibility'!G7","v":0},{"$f":"'6. Accessibility'!H7","v":0}]
["Q3","Q3",{"$f":"'6. Accessibility'!E8","v":0},{"$f":"'6. Accessibility'!F8","v":0},{"$f":"'6. Accessibility'!G8","v":0},{"$f":"'6. Accessibility'!H8","v":0}]
["Q4","Q4",{"$f":"'6. Accessibility'!E9","v":0},{"$f":"'6. Accessibility'!F9","v":0},{"$f":"'6. Accessibility'!G9","v":0},{"$f":"'6. Accessibility'!H9","v":0}]
["Q5","Q5",{"$f":"'6. Accessibility'!E11","v":0},{"$f":"'6. Accessibility'!F11","v":0},{"$f":"'6. Accessibility'!G11","v":0},{"$f":"'6. Accessibility'!H11","v":0}]
["Q6","Q6",{"$f":"'6. Accessibility'!E12","v":0},{"$f":"'6. Accessibility'!F12","v":0},{"$f":"'6. Accessibility'!G12","v":0},{"$f":"'6. Accessibility'!H12","v":0}]
["Q7","Q7",{"$f":"'6. Accessibility'!E13","v":0},{"$f":"'6. Accessibility'!F13","v":0},{"$f":"'6. Accessibility'!G13","v":0},{"$f":"'6. Accessibility'!H13","v":0}]
["Q8","Q8",{"$f":"'6. Accessibility'!E15","v":0},{"$f":"'6. Accessibility'!F15","v":0},{"$f":"'6. Accessibility'!G15","v":0},{"$f":"'6. Accessibility'!H15","v":0}]
["Q9","Q9",{"$f":"'6. Accessibility'!E17","v":0},{"$f":"'6. Accessibility'!F17","v":0},{"$f":"'6. Accessibility'!G17","v":0},{"$f":"'6. Accessibility'!H17","v":0}]
["Q10","Q10",{"$f":"'6. Accessibility'!E18","v":0},{"$f":"'6. Accessibility'!F18","v":0},{"$f":"'6. Accessibility'!G18","v":0},{"$f":"'6. Accessibility'!H18","v":0}]
["Q11","Q11",{"$f":"'6. Accessibility'!E20","v":0},{"$f":"'6. Accessibility'!F20","v":0},{"$f":"'6. Accessibility'!G20","v":0},{"$f":"'6. Accessibility'!H20","v":0}]
["Q12","Q12",{"$f":"'6. Accessibility'!E21","v":0},{"$f":"'6. Accessibility'!F21","v":0},{"$f":"'6. Accessibility'!G21","v":0},{"$f":"'6. Accessibility'!H21","v":0}]
["Q13","Q13",{"$f":"'6. Accessibility'!E22","v":0},{"$f":"'6. Accessibility'!F22","v":0},{"$f":"'6. Accessibility'!G22","v":0},{"$f":"'6. Accessibility'!H22","v":0}]
[null,"Q14"]
[null,"Q15"]
["Q14","Q16",{"$f":"'6. Accessibility'!E25","v":0},{"$f":"'6. Accessibility'!F25","v":0},{"$f":"'6. Accessibility'!G25","v":0},{"$f":"'6. Accessibility'!H25","v":0}]
["Q15","Q17",{"$f":"'6. Accessibility'!E26","v":0},{"$f":"'6. Accessibility'!F26","v":0},{"$f":"'6. Accessibility'!G26","v":0},{"$f":"'6. Accessibility'!H26","v":0}]
["Q16","Q18",{"$f":"'6. Accessibility'!E28","v":0},{"$f":"'6. Accessibility'!F28","v":0},{"$f":"'6. Accessibility'!G28","v":0},{"$f":"'6. Accessibility'!H28","v":0}]
["Q17","Q19",{"$f":"'6. Accessibility'!E31","v":0},{"$f":"'6. Accessibility'!F31","v":0},{"$f":"'6. Accessibility'!G31","v":0},{"$f":"'6. Accessibility'!H31","v":0}]
["Q18","Q20",{"$f":"'6. Accessibility'!E32","v":0},{"$f":"'6. Accessibility'!F32","v":0},{"$f":"'6. Accessibility'!G32","v":0},{"$f":"'6. Accessibility'!H32","v":0}]
["Q19","Q21",{"$f":"'6. Accessibility'!E33","v":0},{"$f":"'6. Accessibility'!F33","v":0},{"$f":"'6. Accessibility'!G33","v":0},{"$f":"'6. Accessibility'!H33","v":0}]
["Q20","Q22",{"$f":"'6. Accessibility'!E35","v":0},{"$f":"'6. Accessibility'!F35","v":0},{"$f":"'6. Accessibility'!G35","v":0},{"$f":"'6. Accessibility'!H35","v":0}]